bitfinex/quotes_ETHUSD_20251226
["timestamp","ask_amount","ask_price","bid_price","bid_amount"]
[1766737179050,3.37828519,2961.9,2961.3,2.6175]
[1766737179483,0.002,2961.9,2961.3,2.6175]
[1766737187264,0.002,2961.9,2961.5,2.2887]
[1766737188097,0.002,2961.9,2961.3,0.001]
[1766737196009,0.002,2961.9,2961.4,2.4894]
[1766737200410,9.16152242,2961.9,2961.4,2.4894]
[1766737200703,3.32325224,2961.8,2961.3,0.001]
[1766737200888,2.4071,2961.7,2961.3,0.001]
[1766737201477,6.75442242,2961.9,2961.3,0.001]
[1766737201678,9.15542242,2961.9,2961.3,2.4904]
[1766737201874,10.07096466,2961.9,2961.3,2.4904]
[1766737202078,7.66996466,2961.9,2961.3,2.4904]
[1766737202273,2.3951,2961.8,2961.3,2.4904]
[1766737202497,3.3764392,2961.7,2961.3,2.4904]
[1766737202701,9.1479784,2961.7,2961.3,0.001]
[1766737202902,2.3951,2961.6,2961.3,0.001]
[1766737204486,4.38304493,2961.7,2961.3,0.001]
[1766737204818,7.75956781,2961.7,2961.3,0.001]
[1766737205028,4.38304493,2961.7,2961.3,0.001]
[1766737206016,4.38304493,2961.7,2961.3,2.4904]
[1766737207307,1.0142685,2961.6,2961.3,2.4904]
[1766737208002,3.37649287,2961.7,2961.3,2.4904]
[1766737208413,3.37825187,2961.9,2961.3,2.4904]
[1766737208414,3.37637827,2961.8,2961.3,2.4904]
[1766737209835,0.002,2961.9,2961.3,2.4904]
[1766737210037,2.3571,2961.9,2961.3,2.4904]
[1766737210240,2.3571,2961.9,2961.3,0.001]
[1766737211037,2.3497,2961.7,2961.3,0.001]
[1766737212446,5.72624101,2961.7,2961.3,0.001]
[1766737215225,3.37654101,2961.7,2961.3,0.001]
[1766737215428,3.37654101,2961.7,2961.3,2.414]
[1766737216239,3.37854101,2961.7,2961.3,2.414]
[1766737217420,4.41134554,2961.7,2961.3,2.414]
[1766737218539,1.03480453,2961.7,2961.3,2.414]
[1766737218741,0.002,2961.7,2961.3,2.414]
[1766737222140,0.002,2961.7,2961.3,0.001]
[1766737222321,2.2638,2961.7,2961.3,0.001]
[1766737223025,3.984431,2961.4,2960.8,2.414]
[1766737223214,3.984431,2961.2,2960.8,2.414]
[1766737223546,0.6246231,2961.3,2960.8,2.414]
[1766737223730,6.246231,2961.4,2961.3,0.001]
[1766737224054,6.246231,2961.4,2960.8,2.414]
[1766737224415,3.37689528,2961.3,2960.8,2.414]
[1766737225842,6.75379056,2961.3,2960.8,2.414]
[1766737227316,4.870431,2961.2,2960.5,0.001]
[1766737227543,4.870431,2961.2,2960.6,2.413]
[1766737227544,6.17043316,2961.2,2960.6,2.413]
[1766737228144,6.17043316,2961.2,2960.5,0.001]
[1766737228421,2.18600216,2961.2,2960.5,0.001]
[1766737228621,0.89397927,2961.1,2960.5,0.001]
[1766737228823,3.37723741,2961.0,2960.5,0.001]
[1766737229045,6.75447482,2961.0,2960.5,0.001]
[1766737229948,3.37723741,2961.0,2960.5,0.001]
[1766737230445,4.27112447,2961.1,2960.5,0.001]
[1766737230650,0.886,2961.0,2960.5,0.03477807]
[1766737230848,3.37692779,2961.3,2960.8,0.001]
[1766737231040,3.37655321,2961.6,2960.8,0.001]
[1766737231239,3.77519631,2961.6,2960.8,3.985431]
[1766737231425,3.77519631,2961.6,2960.9,0.03377351]
[1766737231634,4.26255321,2961.6,2960.9,0.03377351]
[1766737232016,4.26255321,2961.6,2960.8,0.001]
[1766737232450,7.63920955,2961.6,2960.8,0.001]
[1766737232825,3.984431,2961.5,2960.8,0.001]
[1766737233031,1.16236406,2961.4,2960.8,0.001]
[1766737234243,4.53925238,2961.4,2960.8,0.001]
[1766737234453,0.886,2961.4,2960.8,0.001]
[1766737236156,3.37689528,2961.3,2960.8,0.001]
[1766737237761,4.26283709,2961.4,2960.8,0.001]
[1766737241150,0.002,2961.7,2960.8,0.001]
[1766737241359,4.2625914,2961.6,2960.8,0.001]
[1766737241657,0.002,2961.7,2960.8,0.001]
[1766737241852,0.002,2961.7,2960.9,3.984431]
[1766737242224,3.37844786,2961.7,2960.9,3.984431]
[1766737244067,0.002,2961.6,2960.9,3.984431]
[1766737244353,0.002,2961.6,2961.0,0.3985431]
[1766737245868,0.002,2962.8,2961.5,3.984431]
[1766737246065,3.37541348,2962.6,2961.8,3.984431]
[1766737246270,3.37541348,2962.6,2961.6,3.984431]
[1766737246564,3.37541348,2962.6,2961.7,0.03376439]
[1766737246773,1.31234135,2962.5,2961.7,0.03376439]
[1766737246934,1.31234135,2962.5,2961.6,3.984431]
[1766737247273,0.42634135,2962.5,2961.7,0.03376439]
[1766737247469,1.31234135,2962.5,2961.7,0.03376439]
[1766737248475,4.687885,2962.5,2961.7,0.03376439]
[1766737248972,4.687885,2962.5,2961.4,7.36116027]
[1766737249274,8.06342865,2962.5,2961.5,0.73611603]
[1766737249585,3.984431,2962.1,2961.0,3.37721521]
[1766737250073,3.984431,2962.3,2961.1,3.3771068]
[1766737251358,3.984431,2962.3,2961.1,3.37710157]
[1766737251676,3.77431238,2962.2,2961.2,0.33771016]
[1766737251848,3.77431238,2962.2,2961.3,0.03376895]
[1766737252055,3.37586928,2962.2,2961.3,4.01819995]
[1766737252355,0.886,2962.2,2961.3,4.01819995]
[1766737252673,6.7513294,2962.4,2961.4,3.984431]
[1766737253244,6.7513294,2962.4,2961.2,4.32214116]
[1766737253443,6.7513294,2962.4,2961.3,0.53354373]
[1766737253866,10.7357604,2962.4,2961.3,0.53354373]
[1766737257247,10.7357604,2962.4,2961.1,3.37706321]
[1766737257649,3.984431,2962.2,2961.0,7.36165843]
[1766737257954,3.984431,2962.2,2961.0,3.37722743]
[1766737258158,3.984431,2962.2,2961.3,0.001]
[1766737258361,0.3984431,2962.1,2961.3,0.001]
[1766737258562,0.886,2962.0,2961.3,0.001]
[1766737259860,4.26210485,2962.0,2961.3,0.001]
[1766737260062,0.002,2962.4,2961.3,0.001]
[1766737260252,4.26175532,2962.3,2961.4,4.3829741]
[1766737260453,4.26175532,2962.3,2961.5,0.03376667]
[1766737260977,7.63751064,2962.3,2961.3,0.001]
[1766737261552,7.63751064,2962.3,2961.3,0.03476895]
[1766737261754,0.76395106,2962.2,2961.3,0.43668895]
[1766737262251,3.37598325,2962.1,2961.3,0.43668895]
[1766737262452,3.37598325,2962.1,2961.3,0.40292]
[1766737262655,3.37598325,2962.1,2961.3,0.001]
[1766737263579,6.7519665,2962.1,2961.3,0.001]
[1766737266277,0.886,2962.0,2961.3,0.001]
[1766737266678,3.37621121,2961.9,2961.3,0.001]
[1766737270665,0.76395106,2962.2,2961.3,0.001]
[1766737270871,0.002,2962.4,2961.3,0.001]
[1766737270872,3.37767729,2962.4,2961.5,3.98400091]
[1766737271072,3.37767729,2962.4,2961.6,0.03376553]
[1766737271393,6.75335458,2962.4,2961.6,0.03376553]
[1766737272394,6.75335458,2962.4,2961.4,0.54310009]
[1766737272594,6.75335458,2962.4,2961.5,0.39209479]
[1766737273179,3.37767729,2962.4,2961.6,0.03376553]
[1766737273385,0.002,2962.4,2961.6,0.03376553]
[1766737274082,0.002,2962.4,2961.7,3.98400091]
[1766737274293,0.002,2962.4,2961.8,0.43553989]
[1766737274598,0.002,2962.4,2961.8,0.58013989]
[1766737275794,0.002,2962.4,2961.8,3.95642598]
[1766737276196,2.4342,2962.7,2962.0,6.25030091]
[1766737276375,2.4342,2962.7,2962.1,0.43446611]
[1766737276697,2.4342,2962.7,2962.1,0.40070628]
[1766737277699,2.4342,2962.7,2962.1,2.66700628]
[1766737278498,2.4342,2962.7,2962.2,0.03375869]
[1766737278690,2.4342,2962.7,2962.1,2.66700628]
[1766737278890,0.002,2962.4,2962.2,0.39209479]
[1766737279289,2.4342,2962.7,2962.2,2.65839479]
[1766737281392,0.002,2962.7,2962.2,2.65839479]
[1766737281893,0.002,2962.7,2962.3,0.03375755]
[1766737282096,0.002,2962.7,2962.2,2.65839479]
[1766737282294,0.002,2962.7,2962.3,0.40177664]
[1766737283609,0.002,2962.7,2962.4,0.03375641]
[1766737283813,0.002,2962.7,2962.4,2.30005641]
[1766737285016,0.002,2962.7,2962.4,2.2663]
[1766737286479,0.002,2962.7,2962.3,0.40277664]
[1766737286701,2.4611,2962.7,2962.3,0.001]
[1766737287615,2.4611,2962.7,2962.3,0.03475755]
[1766737288214,0.002,2962.7,2962.3,2.30105755]
[1766737288416,0.002,2962.7,2962.3,2.2673]
[1766737289205,0.002,2962.7,2962.3,2.4119]
[1766737290109,0.002,2962.7,2962.4,0.57877446]
[1766737290314,0.002,2962.7,2962.3,2.4119]
[1766737292313,2.4611,2962.7,2962.3,0.1456]
[1766737294314,2.4611,2962.7,2962.4,0.03375641]
[1766737295218,2.4611,2962.7,2962.3,0.03475755]
[1766737295714,2.4611,2962.7,2962.3,0.001]
[1766737295919,2.4611,2962.7,2962.1,0.1446]
[1766737296093,2.4611,2962.7,2962.1,0.47429]
[1766737296294,2.4611,2962.7,2962.1,2.74059]
[1766737296505,2.4611,2962.7,2962.1,6.11655289]
[1766737296831,0.002,2962.7,2962.2,2.30005869]
[1766737297322,0.002,2962.7,2962.2,2.2663]
[1766737297522,0.002,2962.7,2962.3,0.61165529]
[1766737298620,0.002,2962.7,2962.3,2.87795529]
[1766737299340,0.002,2962.7,2962.4,0.03375641]
[1766737299497,0.002,2962.7,2962.4,2.30005641]
[1766737300296,0.002,2962.7,2962.4,2.2663]
[1766737301011,0.002,2962.7,2962.3,0.001]
[1766737302623,0.002,2962.7,2962.3,0.03475755]
[1766737302822,0.002,2962.7,2962.3,0.001]
[1766737304410,0.002,2962.7,2962.3,0.03475755]
[1766737305223,0.002,2962.7,2962.3,0.001]
[1766737306927,0.002,2962.7,2962.3,0.03475755]
[1766737309910,0.002,2962.7,2962.3,0.001]
[1766737317860,0.002,2962.7,2962.4,0.33768693]
[1766737318345,0.002,2962.7,2962.3,0.001]
[1766737318529,0.002,2962.7,2962.3,0.1456]
[1766737318857,0.002,2962.7,2962.4,0.03375641]
[1766737319961,0.002,2962.7,2962.3,0.1456]
[1766737322315,0.002,2962.7,2962.4,0.03375641]
[1766737322518,0.002,2962.7,2962.5,0.35551071]
[1766737322748,0.002,2962.9,2962.6,0.03375413]
[1766737326569,0.002,2962.9,2962.4,3.40936202]
[1766737326863,0.002,2962.9,2962.4,0.03375641]
[1766737329468,0.002,2962.9,2962.3,0.1456]
[1766737329768,0.002,2962.9,2962.3,1.0316]
[1766737329946,0.002,2962.9,2962.3,1.47235208]
[1766737330139,2.3474,2962.9,2962.3,3.83445208]
[1766737330951,2.3474,2962.9,2962.4,2.5067]
[1766737331658,0.002,2962.9,2962.5,2.5067]
[1766737331837,0.002,2962.9,2962.5,2.89014521]
[1766737333269,2.3474,2962.9,2962.3,0.44175208]
[1766737333450,2.3474,2962.9,2962.3,0.001]
[1766737333451,2.3454,2962.8,2962.3,0.001]
[1766737334371,2.3454,2962.8,2962.3,0.03475755]
[1766737334762,2.3454,2962.8,2962.3,2.55485755]
[1766737335146,0.002,2962.9,2962.3,2.55485755]
[1766737335351,2.3912,2962.9,2962.3,2.55485755]
[1766737336168,2.3912,2962.9,2962.3,2.5211]
[1766737336474,2.3912,2962.9,2962.3,3.11079562]
[1766737336674,0.002,2962.9,2962.3,3.11079562]
[1766737336972,0.002,2962.9,2962.4,2.5201]
[1766737337474,0.002,2962.9,2962.6,2.5201]
[1766737337675,0.002,2962.9,2962.7,0.03375299]
[1766737340847,0.002,2962.9,2962.7,2.80923829]
[1766737341259,2.31806211,2963.3,2962.8,2.5201]
[1766737341490,0.002,2963.5,2962.9,2.55385071]
[1766737341891,2.3912,2963.9,2963.4,3.98023864]
[1766737342087,2.3912,2964.3,2963.7,2.5201]
[1766737342372,2.3912,2964.3,2963.0,4.86623864]
[1766737342373,2.3912,2964.3,2963.8,2.90333725]
[1766737342552,2.3912,2964.3,2963.8,2.5201]
[1766737344854,0.002,2964.3,2963.5,2.5201]
[1766737345171,2.3892,2964.2,2963.5,2.5201]
[1766737345373,2.3912,2964.1,2963.5,2.5201]
[1766737345570,2.3912,2964.1,2963.5,5.89446354]
[1766737345889,2.3912,2964.1,2963.5,2.5201]
[1766737346078,2.3912,2964.1,2963.5,2.77211]
[1766737346653,0.002,2964.1,2963.8,3.98023864]
[1766737346862,0.002,2964.3,2964.0,2.5201]
[1766737347088,0.002,2964.3,2964.1,0.03373705]
[1766737347293,0.002,2964.3,2964.1,2.5201]
[1766737347487,0.002,2964.3,2964.2,0.03373591]
[1766737348088,0.002,2964.3,2963.6,2.5201]
[1766737348463,2.3892,2964.2,2963.6,2.5201]
[1766737349997,2.3892,2964.2,2963.2,3.51929997]
[1766737349998,2.42293606,2964.2,2963.3,3.4061]
[1766737350166,2.35711877,2963.9,2963.0,2.5201]
[1766737350367,2.39085483,2963.9,2963.0,2.5201]
[1766737350569,2.35711877,2963.9,2963.0,5.89505577]
[1766737350779,2.35711877,2963.9,2963.1,2.5201]
[1766737351167,3.98023864,2963.9,2963.1,2.5201]
[1766737351497,2.3892,2963.8,2963.1,2.5201]
[1766737351896,2.3892,2963.7,2963.1,2.5201]
[1766737353374,2.3892,2963.7,2963.0,2.6647]
[1766737353600,2.3892,2963.7,2963.1,0.03374843]
[1766737353797,2.3892,2963.4,2963.0,0.1446]
[1766737353972,2.3892,2963.3,2962.6,2.6657]
[1766737354508,2.3892,2963.3,2962.7,2.5201]
[1766737355290,2.35712743,2963.3,2962.7,2.5201]
[1766737357115,3.37434153,2963.6,2962.8,2.53703902]
[1766737357520,0.04217985,2963.5,2962.8,2.53703902]
[1766737358320,3.41656859,2963.5,2962.8,2.53703902]
[1766737358910,3.37438874,2963.5,2962.8,2.53703902]
[1766737359115,6.53110359,2963.6,2962.8,2.53703902]
[1766737360119,0.002,2963.5,2962.8,2.53703902]
[1766737360598,0.002,2963.5,2962.8,3.39211991]
[1766737360795,0.002,2963.5,2963.0,2.5201]
[1766737360991,0.002,2963.5,2963.1,0.01693161]
[1766737361308,0.002,2963.5,2963.0,2.5201]
[1766737362093,0.002,2963.5,2962.7,0.1446]
[1766737362401,0.002,2963.5,2962.7,0.89481885]
[1766737363425,0.002,2963.5,2962.8,0.01693673]
[1766737363926,0.002,2963.5,2962.7,0.89481885]
[1766737364095,0.002,2963.5,2962.8,0.01693673]
[1766737365119,0.002,2963.5,2962.7,0.89481885]
[1766737365431,0.002,2963.5,2962.8,0.44405805]
[1766737366634,0.002,2964.0,2963.3,3.98023864]
[1766737366934,0.04417273,2964.0,2963.4,0.0169208]
[1766737367103,0.002,2964.0,2963.1,3.37484391]
[1766737367302,0.002,2964.0,2963.2,0.74996826]
[1766737368431,0.002,2963.5,2963.0,0.1446]
[1766737374038,0.002,2963.5,2963.1,3.98023864]
[1766737375430,0.002,2963.5,2963.0,3.37493096]
[1766737375431,0.002,2963.5,2962.9,7.35525665]
[1766737376143,0.002,2963.5,2963.0,2.6249]
[1766737376343,0.002,2963.5,2963.1,3.37481937]
[1766737376544,0.002,2963.5,2963.2,0.59997194]
[1766737377740,0.002,2963.5,2963.3,0.0169282]
[1766737377942,2.6022,2964.0,2963.3,6.62206684]
[1766737378917,2.6022,2964.0,2963.3,3.99716684]
[1766737379249,2.6022,2964.0,2963.3,3.9860975]
[1766737379648,2.6022,2964.0,2963.3,9.98561363]
[1766737379851,2.6022,2964.0,2963.3,9.96868543]
[1766737380150,2.6022,2964.0,2963.4,0.0169208]
[1766737380342,2.6022,2964.0,2963.4,2.6418208]
[1766737380556,2.6022,2964.0,2963.5,0.59997194]
[1766737380743,2.6022,2964.0,2963.6,0.01691738]
[1766737381050,2.5878,2963.8,2963.0,0.001]
[1766737381233,2.5894,2963.7,2963.0,0.001]
[1766737381749,2.5894,2963.6,2962.8,0.886]
[1766737381921,2.5884,2963.5,2962.8,0.886]
[1766737382127,2.5884,2963.5,2962.8,4.26114008]
[1766737384049,2.5884,2963.5,2962.8,0.886]
[1766737384257,2.63488127,2963.4,2962.8,0.886]
[1766737384973,2.63488127,2963.4,2962.6,6.00129522]
[1766737385262,2.5927,2963.2,2962.6,6.00129522]
[1766737386383,2.5927,2963.2,2962.8,0.001]
[1766737388465,2.5972,2963.1,2962.6,0.001]
[1766737388767,2.5972,2962.9,2962.3,0.001]
[1766737388966,2.5952,2962.7,2962.3,0.001]
[1766737393244,2.6008,2962.5,2962.0,2.6249]
[1766737394328,2.6008,2962.5,2962.3,0.001]
[1766737401369,2.65399124,2962.7,2962.3,0.001]
[1766737401572,0.62931164,2962.6,2962.3,0.001]
[1766737402161,3.24011164,2962.6,2962.0,2.6249]
[1766737403274,3.24011164,2962.6,2962.0,6.0009791]
[1766737403580,3.24011164,2962.6,2962.0,2.6249]
[1766737404250,2.6108,2962.6,2962.0,2.6249]
[1766737405787,5.98622298,2962.6,2962.0,2.6249]
[1766737405975,5.98622298,2962.6,2961.9,0.886]
[1766737405976,2.6153,2962.5,2961.9,0.886]
[1766737407565,2.6153,2962.5,2961.9,3.3495]
[1766737408388,2.6153,2962.5,2961.9,3.3505]
[1766737408787,2.6153,2962.5,2961.9,6.72667574]
[1766737410566,2.6153,2962.5,2962.0,2.4635]
[1766737412187,2.6153,2962.5,2962.0,5.83958954]
[1766737412382,2.6153,2962.5,2962.0,2.4635]
[1766737413092,2.6153,2962.5,2962.0,5.83958234]
[1766737413392,2.6153,2962.5,2962.0,2.4635]
[1766737413591,2.6153,2962.5,2962.0,5.83958557]
[1766737414703,0.30612852,2962.8,2962.0,3.37608557]
[1766737414887,6.03722422,2962.9,2962.1,2.4635]
[1766737415081,3.41732422,2962.9,2962.1,2.4635]
[1766737415287,2.6199,2962.8,2962.1,2.4635]
[1766737417409,2.6199,2962.8,2962.1,5.83942093]
[1766737417906,0.002,2962.5,2962.1,5.83942093]
[1766737418879,0.002,2962.5,2962.1,2.4635]
[1766737419080,0.002,2962.5,2962.1,5.83943872]
[1766737420619,0.002,2962.5,2962.1,2.4635]
[1766737420976,0.002,2962.5,2962.1,5.83945655]
[1766737421178,0.04218839,2962.9,2962.2,6.44387092]
[1766737421380,3.37467688,2963.3,2962.4,2.4635]
[1766737421598,0.04218412,2963.2,2962.4,2.4635]
[1766737421811,2.66208412,2963.2,2962.4,2.4635]
[1766737423506,2.6199,2963.0,2962.4,2.4635]
[1766737423706,2.66208697,2963.0,2962.1,5.83945655]
[1766737424327,2.66208697,2963.0,2962.1,3.37595655]
[1766737424522,2.66208697,2963.0,2962.2,2.6813]
[1766737424902,2.66208697,2963.0,2962.2,6.05716776]
[1766737425421,2.66208697,2963.0,2962.2,2.6813]
[1766737426227,3.41717529,2963.0,2962.2,2.6813]
[1766737426394,2.5093,2962.9,2962.3,0.001]
[1766737428127,2.55148982,2962.8,2962.3,0.001]
[1766737435948,2.55348982,2962.8,2962.3,0.001]
[1766737436148,2.55348982,2962.8,2962.3,2.6274]
[1766737436149,0.04418982,2962.8,2962.3,2.6274]
[1766737436315,0.002,2962.8,2962.3,2.6274]
[1766737441054,0.002,2962.8,2962.3,3.22773247]
[1766737441257,0.002,2963.2,2962.4,0.91975641]
[1766737441565,0.002,2963.2,2962.5,2.6264]
[1766737441871,0.002,2963.2,2962.7,2.6264]
[1766737442168,0.002,2963.2,2962.8,2.66015185]
[1766737442534,0.002,2963.5,2963.0,2.6264]
[1766737442738,0.002,2964.0,2963.4,2.6264]
[1766737442939,0.04414767,2964.0,2963.4,2.66014502]
[1766737443139,0.002,2964.0,2963.4,2.6264]
[1766737443440,0.002,2964.0,2963.5,2.66014388]
[1766737444477,2.5814,2964.0,2963.2,6.00110885]
[1766737445045,0.002,2964.0,2963.3,2.6264]
[1766737445250,0.002,2964.0,2963.5,2.6264]
[1766737446384,0.002,2964.0,2963.7,2.6264]
[1766737447884,0.04214767,2964.2,2963.6,2.6264]
[1766737448083,0.002,2964.3,2963.4,0.56803832]
[1766737448084,0.002,2964.3,2963.8,2.6264]
[1766737448280,2.5794,2964.1,2963.4,3.37443431]
[1766737448450,6.55746738,2964.0,2963.4,4.26043431]
[1766737448654,2.5794,2964.0,2963.4,6.88683431]
[1766737449965,2.5794,2964.0,2963.4,6.00083431]
[1766737451084,2.5794,2964.0,2963.5,2.6264]
[1766737451991,0.002,2964.2,2963.5,2.6264]
[1766737452192,0.002,2964.2,2963.6,2.66014274]
[1766737453295,0.002,2964.2,2963.6,2.6264]
[1766737455598,2.6291,2964.2,2963.6,2.6264]
[1766737456297,2.6291,2964.2,2963.7,2.6737]
[1766737457088,0.002,2964.2,2963.7,2.6737]
[1766737457294,0.002,2964.2,2963.8,2.70744046]
[1766737457668,0.002,2964.6,2964.0,2.6737]
[1766737457895,0.002,2964.6,2964.2,2.6737]
[1766737458077,0.002,2964.6,2964.3,0.03373477]
[1766737458281,4.86506738,2965.2,2964.5,2.6737]
[1766737458282,0.002,2965.2,2964.5,2.6737]
[1766737458800,0.002,2965.4,2964.7,2.6737]
[1766737459000,0.002,2965.4,2964.4,3.97806738]
[1766737459001,0.002,2965.4,2964.9,2.6737]
[1766737459193,0.002,2965.4,2965.0,2.70742681]
[1766737460177,5.99911117,2965.6,2965.0,2.6737]
[1766737460178,9.94712869,2965.6,2965.0,2.6737]
[1766737460374,3.97806738,2965.2,2964.4,6.04700868]
[1766737460597,7.00297412,2965.2,2964.5,2.6737]
[1766737460798,2.6271,2965.1,2964.5,2.6737]
[1766737463704,2.6271,2965.1,2964.5,6.04693759]
[1766737463911,2.6271,2965.1,2964.6,2.6737]
[1766737465203,3.97806738,2964.8,2964.3,3.5587]
[1766737465515,2.6271,2964.7,2964.0,2.6737]
[1766737466007,6.00015378,2964.7,2964.0,2.6737]
[1766737466314,6.00015378,2964.7,2964.1,0.03373705]
[1766737466518,2.6271,2964.7,2964.1,2.70743705]
[1766737466908,6.00014803,2964.7,2964.1,2.70743705]
[1766737467809,6.00014803,2964.7,2964.2,0.03373591]
[1766737468010,7.3352514,2964.7,2964.1,2.6737]
[1766737468382,2.6271,2965.2,2964.5,2.6737]
[1766737468603,3.97806738,2965.2,2964.5,2.6737]
[1766737468908,6.60516738,2965.0,2964.5,2.6737]
[1766737469291,6.60516738,2965.0,2964.5,2.6237]
[1766737469492,2.6271,2964.7,2964.0,2.6737]
[1766737469896,2.6271,2964.7,2964.1,0.03373705]
[1766737470219,2.6271,2964.7,2964.2,0.03373591]
[1766737470384,2.6271,2964.7,2964.2,2.70743591]
[1766737470887,9.9781352,2964.8,2964.2,2.70743591]
[1766737471110,11.31322377,2964.8,2964.2,2.70743591]
[1766737471514,7.33515639,2964.8,2964.2,2.70743591]
[1766737471689,4.70805639,2964.8,2964.2,2.70743591]
[1766737472413,11.31322377,2964.8,2964.2,2.70743591]
[1766737472618,2.6271,2964.7,2964.2,0.03373591]
[1766737472914,4.09570234,2964.7,2964.0,2.6737]
[1766737473215,2.6271,2964.7,2964.0,2.6737]
[1766737473712,2.6271,2964.7,2964.1,0.03373705]
[1766737473918,3.97806738,2964.6,2964.1,2.6747]
[1766737474417,6.60516738,2964.6,2964.1,2.6747]
[1766737474626,2.6271,2964.5,2964.1,0.001]
[1766737476202,2.6271,2964.7,2964.1,2.6747]
[1766737476397,2.6271,2964.7,2964.2,2.70743591]
[1766737476727,2.6271,2964.5,2964.1,0.001]
[1766737476897,6.60516738,2964.4,2964.1,0.001]
[1766737477113,6.60516738,2964.4,2963.8,2.6737]
[1766737477348,6.60516738,2964.6,2963.9,2.6737]
[1766737477557,1.09760299,2964.5,2963.9,2.6737]
[1766737479142,4.47085983,2964.5,2963.9,2.6737]
[1766737479344,7.09795983,2964.5,2963.9,2.6737]
[1766737479647,7.09795983,2964.5,2963.5,4.40395709]
[1766737479648,3.97806738,2964.0,2963.5,0.885]
[1766737479843,6.60516738,2964.2,2963.5,6.93302138]
[1766737480140,2.6271,2964.2,2963.6,3.3742227]
[1766737480339,2.6271,2964.2,2963.6,2.6737]
[1766737481416,2.6271,2964.2,2963.9,0.001]
[1766737483226,3.97806738,2964.4,2963.9,0.001]
[1766737483558,3.97806738,2964.4,2963.9,0.03473932]
[1766737483756,3.97806738,2964.4,2963.9,0.001]
[1766737484553,6.60516738,2964.5,2964.0,0.03373819]
[1766737484753,6.60516738,2964.5,2963.9,0.03473932]
[1766737484754,9.97846263,2964.5,2963.9,0.03473932]
[1766737486635,2.4547,2964.4,2963.9,0.03473932]
[1766737488218,7.35136263,2964.5,2963.9,0.001]
[1766737488219,6.43276738,2964.3,2963.9,0.001]
[1766737488759,2.4547,2964.3,2963.9,0.001]
[1766737492783,3.37350585,2964.3,2963.9,0.001]
[1766737492932,3.97806738,2964.2,2963.5,6.95645661]
[1766737493136,2.512,2964.1,2963.5,6.95645661]
[1766737493571,3.97806738,2964.0,2963.5,0.885]
[1766737493755,2.512,2963.9,2963.5,0.885]
[1766737493956,6.49006738,2964.2,2963.5,6.95645619]
[1766737494281,6.49006738,2964.2,2963.6,2.6971]
[1766737494450,2.512,2964.2,2963.6,2.6971]
[1766737494871,2.512,2964.2,2963.6,6.0713688]
[1766737495074,2.512,2964.2,2963.7,0.0337416]
[1766737496677,2.512,2964.2,2963.7,2.7308416]
[1766737496857,5.88529864,2964.5,2963.7,6.10499332]
[1766737497163,3.37329864,2964.5,2963.8,2.6971]
[1766737497369,2.512,2964.4,2963.8,2.6971]
[1766737498366,2.512,2964.4,2963.8,2.6981]
[1766737498575,2.512,2964.4,2963.9,2.73083932]
[1766737499136,5.88536805,2964.4,2963.9,2.73083932]
[1766737499878,2.512,2964.4,2963.9,2.73083932]
[1766737500075,2.512,2964.3,2963.9,0.03373932]
[1766737500371,2.512,2964.3,2963.8,2.73184046]
[1766737500542,5.88527877,2964.5,2963.8,3.34244981]
[1766737500759,5.88527877,2964.5,2963.8,2.73184046]
[1766737501566,2.512,2964.4,2963.8,2.73184046]
[1766737501756,6.49006738,2964.4,2963.8,2.73184046]
[1766737501957,2.512,2964.3,2963.8,2.73184046]
[1766737504075,3.37354532,2964.3,2963.8,0.03474046]
[1766737504272,2.512,2964.1,2963.5,0.885]
[1766737504478,2.512,2963.9,2963.5,0.885]
[1766737504697,0.03378813,2963.8,2963.5,0.885]
[1766737505079,2.54578813,2963.8,2963.3,0.001]
[1766737505907,2.512,2963.7,2963.3,0.001]
[1766737506052,2.512,2963.5,2963.3,0.001]
[1766737506384,7.40052193,2963.8,2963.1,0.001]
[1766737506385,2.512,2963.3,2963.1,0.001]
[1766737506594,2.512,2963.3,2963.0,0.001]
[1766737506595,2.512,2963.3,2962.7,0.001]
[1766737506749,2.54578813,2963.2,2962.7,0.001]
[1766737507492,3.01039891,2963.2,2962.7,0.001]
[1766737509291,2.512,2963.1,2962.7,0.001]
[1766737509468,2.512,2962.9,2962.7,0.001]
[1766737510195,0.03378813,2963.1,2962.3,0.001]
[1766737510196,2.54578813,2962.8,2962.3,0.001]
[1766737511361,2.54578813,2962.8,2962.3,3.41044477]
[1766737511362,2.512,2962.8,2962.3,3.41044477]
[1766737511563,2.512,2962.8,2962.3,0.03475755]
[1766737521123,2.512,2962.8,2962.3,0.001]
[1766737528649,2.512,2962.8,2962.3,2.5826]
[1766737528818,2.512,2962.8,2962.3,2.61635755]
[1766737529116,2.512,2962.8,2962.3,2.5826]
[1766737529310,2.512,2962.8,2962.3,0.001]
[1766737530424,2.512,2962.8,2962.1,3.37689547]
[1766737530751,2.512,2962.8,2962.1,0.001]
[1766737530953,2.512,2962.8,2962.2,3.37585274]
[1766737532455,2.6959,2962.9,2962.3,2.6673]
[1766737534958,0.002,2962.8,2962.3,2.6673]
[1766737535148,0.002,2962.8,2962.3,2.63525014]
[1766737537762,0.002,2962.8,2962.4,2.6673]
[1766737540172,0.002,2962.8,2962.4,2.63521877]
[1766737550071,2.4468,2962.8,2962.3,0.001]
[1766737550269,0.04219124,2962.7,2962.3,0.001]
[1766737551274,0.04219124,2962.7,2962.3,2.5183]
[1766737552245,0.002,2962.8,2962.3,2.5183]
[1766737556380,0.002,2962.8,2962.4,2.5173]
[1766737556674,0.04418839,2962.9,2962.4,2.5173]